[Event "Titled Tuesday Blitz April 25 Early 2023"]
[White "MaryanKyrychenko"]
[Black "Milikow, Yoav"]
[BlackFideId "2822237"]
[WhiteElo "2546"]
[BlackElo "2410"]
[Result "1-0"]
[Round "06"]
[TimeControl "180+2"]
[Date "2023.04.25"]
[WhiteClock "0:00:05"]
[BlackClock "0:00:08"]

1. e4 {[%clk 0:03:00]}  e6 {[%clk 0:02:54]} 2. d4 {[%clk 0:02:58]}  d5 {[%clk 0:02:52]} 3. Nc3 {[%clk 0:02:57]}  Bb4 {[%clk 0:02:38]} 4. e5 {[%clk 0:02:56]}  c5 {[%clk 0:02:35]} 5. a3 {[%clk 0:02:56]}  Ba5 {[%clk 0:02:34]} 6. b4 {[%clk 0:02:55]}  cxd4 {[%clk 0:02:33]} 7. Qg4 {[%clk 0:02:52]}  Kf8 {[%clk 0:02:30]} 8. Nb5 {[%clk 0:02:47]}  Bb6 {[%clk 0:02:30]} 9. Nf3 {[%clk 0:02:43]}  Nc6 {[%clk 0:02:29]} 10. Bd3 {[%clk 0:02:30]}  a6 {[%clk 0:02:19]} 11. Nd6 {[%clk 0:02:23]}  Nxe5 {[%clk 0:01:47]} 12. Nxe5 {[%clk 0:02:21]}  Qxd6 {[%clk 0:01:47]} 13. Bf4 {[%clk 0:02:13]}  Qe7 {[%clk 0:01:37]} 14. Qg3 {[%clk 0:02:06]}  Qd8 {[%clk 0:01:18]} 15. O-O {[%clk 0:01:51]}  f6 {[%clk 0:01:17]} 16. Nf3 {[%clk 0:01:46]}  Ne7 {[%clk 0:01:02]} 17. Rfe1 {[%clk 0:01:41]}  Kf7 {[%clk 0:01:00]} 18. h4 {[%clk 0:01:34]}  Ng6 {[%clk 0:00:47]} 19. Bd6 {[%clk 0:01:22]}  Bd7 {[%clk 0:00:32]} 20. h5 {[%clk 0:01:17]}  Ne7 {[%clk 0:00:31]} 21. Qf4 {[%clk 0:01:04]}  Kg8 {[%clk 0:00:17]} 22. h6 {[%clk 0:00:54]}  Ng6 {[%clk 0:00:13]} 23. Qg3 {[%clk 0:00:54]}  Kf7 {[%clk 0:00:08]} 24. Nh4 {[%clk 0:00:50]}  f5 {[%clk 0:00:06]} 25. Bxf5 {[%clk 0:00:31]}  exf5 {[%clk 0:00:04]} 26. Nxg6 {[%clk 0:00:28]}  hxg6 {[%clk 0:00:04]} 27. Qe5 {[%clk 0:00:19]}  Qf6 {[%clk 0:00:01]} 28. Qxd5+ {[%clk 0:00:18]}  Be6 {[%clk 0:00:01]} 29. Qxb7+ {[%clk 0:00:18]}  Kg8 {[%clk 0:00:02]} 30. Qxa8+ {[%clk 0:00:18]}  Kh7 {[%clk 0:00:03]} 31. Qxa6 {[%clk 0:00:16]}  Bd8 {[%clk 0:00:03]} 32. Qd3 {[%clk 0:00:15]}  Bf7 {[%clk 0:00:03]} 33. Bf4 {[%clk 0:00:15]}  g5 {[%clk 0:00:03]} 34. Be5 {[%clk 0:00:14]}  Qxh6 {[%clk 0:00:04]} 35. Kf1 {[%clk 0:00:11]}  Kg8 {[%clk 0:00:04]} 36. Ke2 {[%clk 0:00:11]}  Qc6 {[%clk 0:00:04]} 37. Kd2 {[%clk 0:00:11]}  Bc4 {[%clk 0:00:04]} 38. Qxd4 {[%clk 0:00:11]}  Be7 {[%clk 0:00:04]} 39. Bxg7 {[%clk 0:00:09]}  Rh4 {[%clk 0:00:02]} 40. Qc3 {[%clk 0:00:07]}  Qd7+ {[%clk 0:00:02]} 41. Kc1 {[%clk 0:00:07]}  Be6 {[%clk 0:00:01]} 42. Kb2 {[%clk 0:00:06]}  Rc4 {[%clk 0:00:01]} 43. Rad1 {[%clk 0:00:06]}  Qc8 {[%clk 0:00:01]} 44. Qe3 {[%clk 0:00:04]}  Kf7 {[%clk 0:00:01]} 45. Qxe6+ {[%clk 0:00:03]}  Qxe6 {[%clk 0:00:01]} 46. Rxe6 {[%clk 0:00:03]}  Kxe6 {[%clk 0:00:02]} 47. Bc3 {[%clk 0:00:04]}  Rc8 {[%clk 0:00:03]} 48. a4 {[%clk 0:00:04]}  f4 {[%clk 0:00:03]} 49. Kb3 {[%clk 0:00:04]}  Kf5 {[%clk 0:00:03]} 50. f3 {[%clk 0:00:04]}  g4 {[%clk 0:00:04]} 51. Rd5+ {[%clk 0:00:03]}  Ke6 {[%clk 0:00:04]} 52. Re5+ {[%clk 0:00:04]}  Kd6 {[%clk 0:00:05]} 53. Re4 {[%clk 0:00:04]}  gxf3 {[%clk 0:00:05]} 54. gxf3 {[%clk 0:00:05]}  Bg5 {[%clk 0:00:05]} 55. Be5+ {[%clk 0:00:05]}  Kd5 {[%clk 0:00:06]} 56. Bxf4 {[%clk 0:00:05]}  Bf6 {[%clk 0:00:07]} 57. Bd2 {[%clk 0:00:04]}  Rh8 {[%clk 0:00:07]} 58. c4+ {[%clk 0:00:05]}  Kd6 {[%clk 0:00:07]} 59. Bc3 {[%clk 0:00:05]}  Rh1 {[%clk 0:00:08]} 60. Bxf6 {[%clk 0:00:05]} 1-0


[Site "https://www.chess.com"]

[Event "Titled Tuesday Blitz April 25 Early 2023"]
[White "Kleiman, Jake"]
[Black "Shomoev, Anton"]
[WhiteFideId "2020041"]
[BlackFideId "4135148"]
[WhiteElo "2532"]
[BlackElo "2451"]
[Result "1-0"]
[Round "06"]
[TimeControl "180+2"]
[Date "2023.04.25"]
[WhiteClock "0:00:16"]
[BlackClock "0:00:10"]

1. e4 {[%clk 0:02:57]}  c5 {[%clk 0:02:34]} 2. c3 {[%clk 0:02:57]}  d5 {[%clk 0:02:33]} 3. exd5 {[%clk 0:02:56]}  Qxd5 {[%clk 0:02:34]} 4. d4 {[%clk 0:02:57]}  Nf6 {[%clk 0:02:34]} 5. Nf3 {[%clk 0:02:57]}  Bg4 {[%clk 0:02:35]} 6. Nbd2 {[%clk 0:02:56]}  cxd4 {[%clk 0:02:21]} 7. Bc4 {[%clk 0:02:47]}  Bxf3 {[%clk 0:02:04]} 8. Bxd5 {[%clk 0:02:33]}  Bxd1 {[%clk 0:02:02]} 9. Bxb7 {[%clk 0:02:31]}  Bg4 {[%clk 0:02:00]} 10. cxd4 {[%clk 0:02:22]}  e6 {[%clk 0:01:58]} 11. Bxa8 {[%clk 0:02:22]}  Bb4 {[%clk 0:01:57]} 12. O-O {[%clk 0:02:07]}  Ke7 {[%clk 0:01:54]} 13. a3 {[%clk 0:01:58]}  Bd6 {[%clk 0:01:45]} 14. Re1 {[%clk 0:01:41]}  Nbd7 {[%clk 0:01:44]} 15. Bf3 {[%clk 0:01:34]}  Bxf3 {[%clk 0:01:41]} 16. Nxf3 {[%clk 0:01:35]}  Nd5 {[%clk 0:01:36]} 17. Bd2 {[%clk 0:01:34]}  Rb8 {[%clk 0:01:34]} 18. b4 {[%clk 0:01:33]}  N7b6 {[%clk 0:01:25]} 19. Rec1 {[%clk 0:01:31]}  Kd7 {[%clk 0:01:23]} 20. Rc2 {[%clk 0:01:22]}  f6 {[%clk 0:01:15]} 21. Ne1 {[%clk 0:01:15]}  Ne7 {[%clk 0:01:01]} 22. Kf1 {[%clk 0:01:12]}  Nf5 {[%clk 0:00:59]} 23. Be3 {[%clk 0:01:11]}  Nd5 {[%clk 0:00:58]} 24. Ke2 {[%clk 0:01:12]}  Bxh2 {[%clk 0:00:50]} 25. Nd3 {[%clk 0:01:07]}  Bd6 {[%clk 0:00:50]} 26. Nc5+ {[%clk 0:01:03]}  Bxc5 {[%clk 0:00:50]} 27. Rxc5 {[%clk 0:01:00]}  h5 {[%clk 0:00:45]} 28. b5 {[%clk 0:00:54]}  Nd6 {[%clk 0:00:35]} 29. a4 {[%clk 0:00:54]}  Rb7 {[%clk 0:00:34]} 30. Rac1 {[%clk 0:00:49]}  Nb6 {[%clk 0:00:27]} 31. Ra1 {[%clk 0:00:43]}  Nd5 {[%clk 0:00:22]} 32. Bd2 {[%clk 0:00:43]}  Ne4 {[%clk 0:00:20]} 33. Rc6 {[%clk 0:00:40]}  h4 {[%clk 0:00:18]} 34. Rac1 {[%clk 0:00:30]}  g5 {[%clk 0:00:17]} 35. Ba5 {[%clk 0:00:24]}  Nd6 {[%clk 0:00:17]} 36. R1c5 {[%clk 0:00:19]}  Nf5 {[%clk 0:00:17]} 37. Kd3 {[%clk 0:00:17]}  Nf4+ {[%clk 0:00:17]} 38. Ke4 {[%clk 0:00:16]}  Nd6+ {[%clk 0:00:17]} 39. Ke3 {[%clk 0:00:16]}  Nxg2+ {[%clk 0:00:17]} 40. Kf3 {[%clk 0:00:15]}  Nf4 {[%clk 0:00:18]} 41. Rc7+ {[%clk 0:00:15]}  Rxc7 {[%clk 0:00:18]} 42. Rxc7+ {[%clk 0:00:16]}  Ke8 {[%clk 0:00:19]} 43. Rxa7 {[%clk 0:00:16]}  Nd5 {[%clk 0:00:18]} 44. Rh7 {[%clk 0:00:15]}  Nf5 {[%clk 0:00:16]} 45. Ke4 {[%clk 0:00:14]}  Nd6+ {[%clk 0:00:16]} 46. Kd3 {[%clk 0:00:15]}  Nf4+ {[%clk 0:00:16]} 47. Kd2 {[%clk 0:00:16]}  Ne4+ {[%clk 0:00:15]} 48. Ke3 {[%clk 0:00:16]}  f5 {[%clk 0:00:15]} 49. b6 {[%clk 0:00:16]}  Nd6 {[%clk 0:00:14]} 50. b7 {[%clk 0:00:16]}  Nxb7 {[%clk 0:00:14]} 51. Rxb7 {[%clk 0:00:17]}  Nd5+ {[%clk 0:00:12]} 52. Kd2 {[%clk 0:00:16]}  g4 {[%clk 0:00:12]} 53. Rh7 {[%clk 0:00:17]}  h3 {[%clk 0:00:12]} 54. Bc3 {[%clk 0:00:16]}  Kd8 {[%clk 0:00:12]} 55. a5 {[%clk 0:00:16]}  Kc8 {[%clk 0:00:13]} 56. a6 {[%clk 0:00:17]}  Kb8 {[%clk 0:00:13]} 57. Ba5 {[%clk 0:00:16]}  Nf6 {[%clk 0:00:11]} 58. Rh6 {[%clk 0:00:15]}  Ne4+ {[%clk 0:00:11]} 59. Ke3 {[%clk 0:00:15]}  Ka7 {[%clk 0:00:12]} 60. Rxe6 {[%clk 0:00:15]}  g3 {[%clk 0:00:06]} 61. fxg3 {[%clk 0:00:14]}  h2 {[%clk 0:00:06]} 62. Rh6 {[%clk 0:00:12]}  Nxg3 {[%clk 0:00:07]} 63. Bc7 {[%clk 0:00:11]}  h1=Q {[%clk 0:00:05]} 64. Rxh1 {[%clk 0:00:11]}  Nxh1 {[%clk 0:00:06]} 65. Kf3 {[%clk 0:00:11]}  Kxa6 {[%clk 0:00:04]} 66. Kg2 {[%clk 0:00:09]}  Kb5 {[%clk 0:00:02]} 67. Kxh1 {[%clk 0:00:08]}  Kc4 {[%clk 0:00:03]} 68. Be5 {[%clk 0:00:09]}  Kd5 {[%clk 0:00:03]} 69. Kg2 {[%clk 0:00:10]}  Ke4 {[%clk 0:00:04]} 70. Kf2 {[%clk 0:00:10]}  f4 {[%clk 0:00:05]} 71. Ke2 {[%clk 0:00:10]}  Kd5 {[%clk 0:00:05]} 72. Kf3 {[%clk 0:00:11]}  Kc4 {[%clk 0:00:06]} 73. Kxf4 {[%clk 0:00:11]}  Kd5 {[%clk 0:00:07]} 74. Kf5 {[%clk 0:00:12]}  Kc6 {[%clk 0:00:07]} 75. Ke6 {[%clk 0:00:12]}  Kb7 {[%clk 0:00:06]} 76. d5 {[%clk 0:00:13]}  Kc8 {[%clk 0:00:07]} 77. Ke7 {[%clk 0:00:13]}  Kb7 {[%clk 0:00:07]} 78. d6 {[%clk 0:00:14]}  Kb6 {[%clk 0:00:08]} 79. d7 {[%clk 0:00:15]}  Kc5 {[%clk 0:00:09]} 80. d8=Q {[%clk 0:00:15]}  Kc4 {[%clk 0:00:10]} 81. Qd6 {[%clk 0:00:16]} 1-0


[Site "https://www.chess.com"]

[Event "Titled Tuesday Blitz April 25 Early 2023"]
[White "Kushko, Dmitriy"]
[Black "Herman, Daniel"]
[WhiteFideId "14162261"]
[BlackFideId "30935008"]
[WhiteElo "2230"]
[BlackElo "1897"]
[Result "1-0"]
[Round "06"]
[TimeControl "180+2"]
[Date "2023.04.25"]
[WhiteClock "0:00:19"]
[BlackClock "0:00:04"]

1. f4 {[%clk 0:03:00]}  Nh6 {[%clk 0:02:58]} 2. Nf3 {[%clk 0:03:00]}  d5 {[%clk 0:02:57]} 3. g3 {[%clk 0:03:00]}  g6 {[%clk 0:02:55]} 4. Bg2 {[%clk 0:03:00]}  Bg7 {[%clk 0:02:55]} 5. O-O {[%clk 0:03:01]}  O-O {[%clk 0:02:55]} 6. d3 {[%clk 0:03:02]}  Nf5 {[%clk 0:02:53]} 7. e4 {[%clk 0:02:56]}  dxe4 {[%clk 0:02:53]} 8. dxe4 {[%clk 0:02:57]}  Qxd1 {[%clk 0:02:53]} 9. Rxd1 {[%clk 0:02:57]}  Nd6 {[%clk 0:02:54]} 10. e5 {[%clk 0:02:56]}  Ne4 {[%clk 0:02:43]} 11. Na3 {[%clk 0:02:43]}  Na6 {[%clk 0:02:21]} 12. Be3 {[%clk 0:02:41]}  Be6 {[%clk 0:02:11]} 13. Nd4 {[%clk 0:02:38]}  Nec5 {[%clk 0:02:00]} 14. Nxe6 {[%clk 0:02:38]}  fxe6 {[%clk 0:01:47]} 15. b4 {[%clk 0:02:38]}  Na4 {[%clk 0:01:46]} 16. Bxb7 {[%clk 0:02:37]}  Nxb4 {[%clk 0:01:46]} 17. Bxa8 {[%clk 0:02:37]}  Rxa8 {[%clk 0:01:46]} 18. Bd2 {[%clk 0:02:21]}  Nc6 {[%clk 0:01:35]} 19. Be1 {[%clk 0:02:16]}  g5 {[%clk 0:01:26]} 20. Nb5 {[%clk 0:02:08]}  gxf4 {[%clk 0:01:14]} 21. gxf4 {[%clk 0:02:08]}  Kf7 {[%clk 0:00:33]} 22. Rab1 {[%clk 0:01:43]}  Bh6 {[%clk 0:00:29]} 23. Bg3 {[%clk 0:01:42]}  Rg8 {[%clk 0:00:26]} 24. Rb3 {[%clk 0:01:26]}  a6 {[%clk 0:00:18]} 25. Nxc7 {[%clk 0:01:23]}  Rc8 {[%clk 0:00:13]} 26. Nxa6 {[%clk 0:01:21]}  Na5 {[%clk 0:00:13]} 27. Ra3 {[%clk 0:01:13]}  Nc3 {[%clk 0:00:13]} 28. Re1 {[%clk 0:01:05]}  Nb7 {[%clk 0:00:06]} 29. Rb3 {[%clk 0:00:54]}  Na5 {[%clk 0:00:06]} 30. Rb4 {[%clk 0:00:52]}  Nd5 {[%clk 0:00:06]} 31. Ra4 {[%clk 0:00:53]}  Nc4 {[%clk 0:00:05]} 32. f5 {[%clk 0:00:48]}  exf5 {[%clk 0:00:03]} 33. e6+ {[%clk 0:00:48]}  Kg6 {[%clk 0:00:03]} 34. Nc7 {[%clk 0:00:43]}  Nde3 {[%clk 0:00:02]} 35. Ra7 {[%clk 0:00:18]}  f4 {[%clk 0:00:02]} 36. Bf2 {[%clk 0:00:18]}  Nf5 {[%clk 0:00:02]} 37. Nd5 {[%clk 0:00:19]}  Ncd6 {[%clk 0:00:02]} 38. Nxe7+ {[%clk 0:00:19]}  Nxe7 {[%clk 0:00:03]} 39. Rxe7 {[%clk 0:00:19]}  Nf5 {[%clk 0:00:04]} 40. Rd7 {[%clk 0:00:19]}  Rxc2 {[%clk 0:00:04]} 41. e7 {[%clk 0:00:19]}  f3 {[%clk 0:00:04]} 42. e8=Q+ {[%clk 0:00:19]} 1-0


[Site "https://www.chess.com"]

[Event "Titled Tuesday Blitz April 25 Early 2023"]
[White "WindWhistler11"]
[Black "Harshavardhan G B"]
[BlackFideId "25059009"]
[WhiteElo "2495"]
[BlackElo "2323"]
[Result "1-0"]
[Round "06"]
[TimeControl "180+2"]
[Date "2023.04.25"]
[WhiteClock "0:00:04"]
[BlackClock "0:00:09"]

1. Nf3 {[%clk 0:02:54]}  Nf6 {[%clk 0:02:58]} 2. g3 {[%clk 0:02:54]}  g6 {[%clk 0:02:57]} 3. Bg2 {[%clk 0:02:54]}  Bg7 {[%clk 0:02:57]} 4. b3 {[%clk 0:02:54]}  O-O {[%clk 0:02:58]} 5. Bb2 {[%clk 0:02:55]}  d6 {[%clk 0:02:58]} 6. d4 {[%clk 0:02:53]}  Nbd7 {[%clk 0:02:58]} 7. O-O {[%clk 0:02:53]}  e5 {[%clk 0:02:58]} 8. Nbd2 {[%clk 0:02:47]}  e4 {[%clk 0:02:55]} 9. Ng5 {[%clk 0:02:47]}  d5 {[%clk 0:02:53]} 10. c4 {[%clk 0:02:46]}  c6 {[%clk 0:02:50]} 11. f3 {[%clk 0:02:35]}  Ng4 {[%clk 0:02:23]} 12. Nxf7 {[%clk 0:02:14]}  Rxf7 {[%clk 0:02:22]} 13. fxg4 {[%clk 0:02:14]}  Nf6 {[%clk 0:02:19]} 14. h3 {[%clk 0:02:10]}  Bh6 {[%clk 0:02:19]} 15. Rf4 {[%clk 0:01:52]}  Bxf4 {[%clk 0:02:13]} 16. gxf4 {[%clk 0:01:53]}  Bxg4 {[%clk 0:02:13]} 17. hxg4 {[%clk 0:01:47]}  Nxg4 {[%clk 0:02:13]} 18. Nf1 {[%clk 0:01:40]}  Qh4 {[%clk 0:01:32]} 19. Qe1 {[%clk 0:01:40]}  Qxe1 {[%clk 0:01:32]} 20. Rxe1 {[%clk 0:01:41]}  Rxf4 {[%clk 0:01:32]} 21. Bc1 {[%clk 0:01:26]}  Rff8 {[%clk 0:01:19]} 22. Bh3 {[%clk 0:01:25]}  Nf6 {[%clk 0:01:16]} 23. Bh6 {[%clk 0:01:20]}  Rfe8 {[%clk 0:01:14]} 24. Bg5 {[%clk 0:01:14]}  Kg7 {[%clk 0:01:13]} 25. Ne3 {[%clk 0:01:10]}  dxc4 {[%clk 0:01:02]} 26. Nxc4 {[%clk 0:00:53]}  Nd5 {[%clk 0:00:51]} 27. Nd6 {[%clk 0:00:45]}  Rf8 {[%clk 0:00:50]} 28. Nxe4 {[%clk 0:00:42]}  h6 {[%clk 0:00:49]} 29. Bd2 {[%clk 0:00:38]}  Nf4 {[%clk 0:00:43]} 30. Bf1 {[%clk 0:00:38]}  g5 {[%clk 0:00:39]} 31. Nc5 {[%clk 0:00:37]}  Rae8 {[%clk 0:00:37]} 32. e3 {[%clk 0:00:37]}  Nd5 {[%clk 0:00:25]} 33. Nxb7 {[%clk 0:00:37]}  g4 {[%clk 0:00:23]} 34. Bg2 {[%clk 0:00:35]}  h5 {[%clk 0:00:22]} 35. Nd6 {[%clk 0:00:35]}  Re6 {[%clk 0:00:20]} 36. Ne4 {[%clk 0:00:28]}  h4 {[%clk 0:00:19]} 37. Nc5 {[%clk 0:00:28]}  Re7 {[%clk 0:00:19]} 38. e4 {[%clk 0:00:24]}  Nf4 {[%clk 0:00:18]} 39. Bc3 {[%clk 0:00:21]}  Nxg2 {[%clk 0:00:16]} 40. Kxg2 {[%clk 0:00:20]}  h3+ {[%clk 0:00:16]} 41. Kg3 {[%clk 0:00:18]}  Rf3+ {[%clk 0:00:16]} 42. Kxg4 {[%clk 0:00:19]}  Rxc3 {[%clk 0:00:16]} 43. e5 {[%clk 0:00:16]}  h2 {[%clk 0:00:15]} 44. Rh1 {[%clk 0:00:15]}  Rc2 {[%clk 0:00:15]} 45. Nd3 {[%clk 0:00:12]}  Rxa2 {[%clk 0:00:15]} 46. Nf4 {[%clk 0:00:12]}  Rd7 {[%clk 0:00:14]} 47. Kf5 {[%clk 0:00:12]}  Rxd4 {[%clk 0:00:13]} 48. Ne6+ {[%clk 0:00:11]}  Kf7 {[%clk 0:00:13]} 49. Nxd4 {[%clk 0:00:12]}  c5 {[%clk 0:00:12]} 50. e6+ {[%clk 0:00:11]}  Ke7 {[%clk 0:00:12]} 51. Nc6+ {[%clk 0:00:07]}  Kd6 {[%clk 0:00:12]} 52. e7 {[%clk 0:00:08]}  Rf2+ {[%clk 0:00:12]} 53. Kg6 {[%clk 0:00:07]}  Kd7 {[%clk 0:00:12]} 54. Ne5+ {[%clk 0:00:02]}  Kxe7 {[%clk 0:00:12]} 55. Nc4 {[%clk 0:00:03]}  Kd7 {[%clk 0:00:09]} 56. Kg5 {[%clk 0:00:03]}  Kc6 {[%clk 0:00:09]} 57. Kg4 {[%clk 0:00:04]}  Kb5 {[%clk 0:00:09]} 58. Kg3 {[%clk 0:00:04]}  Rc2 {[%clk 0:00:09]} 59. Na3+ {[%clk 0:00:04]} 1-0


[Site "https://www.chess.com"]

[Event "Titled Tuesday Blitz April 25 Early 2023"]
[White "Akylbek2021"]
[Black "Kollars, Dmitrij"]
[BlackFideId "12909572"]
[WhiteElo "2486"]
[BlackElo "2584"]
[Result "0-1"]
[Round "06"]
[TimeControl "180+2"]
[Date "2023.04.25"]
[WhiteClock "0:00:17"]
[BlackClock "0:01:30"]

1. e4 {[%clk 0:03:00]}  c5 {[%clk 0:03:00]} 2. Nf3 {[%clk 0:02:58]}  d6 {[%clk 0:03:00]} 3. Nc3 {[%clk 0:02:57]}  Nf6 {[%clk 0:03:00]} 4. e5 {[%clk 0:02:58]}  dxe5 {[%clk 0:03:00]} 5. Nxe5 {[%clk 0:02:59]}  a6 {[%clk 0:02:59]} 6. g3 {[%clk 0:02:59]}  Qd6 {[%clk 0:02:59]} 7. Nf3 {[%clk 0:03:00]}  Nc6 {[%clk 0:02:58]} 8. Bg2 {[%clk 0:03:00]}  g6 {[%clk 0:02:55]} 9. O-O {[%clk 0:02:57]}  Bg7 {[%clk 0:02:55]} 10. d3 {[%clk 0:02:58]}  O-O {[%clk 0:02:54]} 11. Nd2 {[%clk 0:02:49]}  Bg4 {[%clk 0:02:52]} 12. Nc4 {[%clk 0:02:34]}  Qd7 {[%clk 0:02:46]} 13. Qd2 {[%clk 0:02:29]}  Rad8 {[%clk 0:02:43]} 14. Ne3 {[%clk 0:02:00]}  Bh3 {[%clk 0:02:42]} 15. Re1 {[%clk 0:01:56]}  Bxg2 {[%clk 0:02:41]} 16. Kxg2 {[%clk 0:01:57]}  Nd4 {[%clk 0:02:41]} 17. Ne4 {[%clk 0:01:51]}  Qc6 {[%clk 0:02:37]} 18. f3 {[%clk 0:01:51]}  Nxf3 {[%clk 0:02:37]} 19. Kxf3 {[%clk 0:01:40]}  Nxe4 {[%clk 0:02:37]} 20. Qg2 {[%clk 0:01:21]}  Qf6+ {[%clk 0:01:52]} 21. Ke2 {[%clk 0:01:21]}  Nd6 {[%clk 0:01:53]} 22. Bd2 {[%clk 0:01:14]}  Qxb2 {[%clk 0:01:50]} 23. Rab1 {[%clk 0:00:50]}  Qxa2 {[%clk 0:01:46]} 24. Qd5 {[%clk 0:00:44]}  Qxd5 {[%clk 0:01:42]} 25. Nxd5 {[%clk 0:00:45]}  Nf5 {[%clk 0:01:42]} 26. c4 {[%clk 0:00:35]}  b5 {[%clk 0:01:38]} 27. Kd1 {[%clk 0:00:31]}  e6 {[%clk 0:01:38]} 28. Nf4 {[%clk 0:00:28]}  g5 {[%clk 0:01:31]} 29. Nh5 {[%clk 0:00:20]}  Rxd3 {[%clk 0:01:31]} 30. Kc2 {[%clk 0:00:21]}  bxc4 {[%clk 0:01:31]} 31. Nxg7 {[%clk 0:00:18]}  Nd4+ {[%clk 0:01:31]} 32. Kc1 {[%clk 0:00:17]}  Kxg7 {[%clk 0:01:32]} 33. Bxg5 {[%clk 0:00:17]}  Nf3 {[%clk 0:01:31]} 34. Bf4 {[%clk 0:00:17]}  Nxe1 {[%clk 0:01:30]} 0-1


[Site "https://www.chess.com"]

[Event "Titled Tuesday Blitz April 25 Early 2023"]
[White "Janaszak, Dawid"]
[Black "Durarbayli, Vasif"]
[WhiteFideId "1119206"]
[BlackFideId "13402935"]
[WhiteElo "2220"]
[BlackElo "2551"]
[Result "0-1"]
[Round "06"]
[TimeControl "180+2"]
[Date "2023.04.25"]
[WhiteClock "0:00:14"]
[BlackClock "0:00:50"]

1. e4 {[%clk 0:03:00]}  e5 {[%clk 0:02:59]} 2. Nf3 {[%clk 0:03:00]}  Nc6 {[%clk 0:03:00]} 3. d4 {[%clk 0:02:59]}  exd4 {[%clk 0:03:00]} 4. Nxd4 {[%clk 0:03:00]}  Bc5 {[%clk 0:03:00]} 5. Nb3 {[%clk 0:02:58]}  Bb6 {[%clk 0:03:00]} 6. Nc3 {[%clk 0:02:59]}  Nf6 {[%clk 0:03:00]} 7. Bg5 {[%clk 0:02:54]}  O-O {[%clk 0:02:53]} 8. Qe2 {[%clk 0:02:47]}  Nd4 {[%clk 0:02:49]} 9. Qd3 {[%clk 0:02:45]}  Nxb3 {[%clk 0:02:47]} 10. axb3 {[%clk 0:02:45]}  c6 {[%clk 0:02:46]} 11. O-O-O {[%clk 0:02:32]}  h6 {[%clk 0:01:52]} 12. Bh4 {[%clk 0:02:23]}  g5 {[%clk 0:01:51]} 13. Bg3 {[%clk 0:02:21]}  d5 {[%clk 0:01:52]} 14. exd5 {[%clk 0:02:05]}  Nxd5 {[%clk 0:01:51]} 15. Nxd5 {[%clk 0:02:05]}  Qxd5 {[%clk 0:01:49]} 16. Qxd5 {[%clk 0:02:05]}  cxd5 {[%clk 0:01:50]} 17. Rxd5 {[%clk 0:02:04]}  Be6 {[%clk 0:01:50]} 18. Rd2 {[%clk 0:01:57]}  Rac8 {[%clk 0:01:45]} 19. h4 {[%clk 0:01:54]}  g4 {[%clk 0:01:41]} 20. Kb1 {[%clk 0:01:47]}  Rfd8 {[%clk 0:01:34]} 21. Rxd8+ {[%clk 0:01:42]}  Rxd8 {[%clk 0:01:35]} 22. Bc4 {[%clk 0:01:28]}  Bf5 {[%clk 0:01:25]} 23. Bf4 {[%clk 0:01:14]}  Bxf2 {[%clk 0:01:15]} 24. Bxh6 {[%clk 0:01:12]}  Be4 {[%clk 0:01:11]} 25. Bg5 {[%clk 0:00:44]}  Bxg2 {[%clk 0:00:58]} 26. Rh2 {[%clk 0:00:40]}  Rd1+ {[%clk 0:00:58]} 27. Ka2 {[%clk 0:00:40]}  Rg1 {[%clk 0:00:58]} 28. Bf4 {[%clk 0:00:22]}  g3 {[%clk 0:00:55]} 29. Rxg2 {[%clk 0:00:14]}  Rxg2 {[%clk 0:00:56]} 30. Bd5 {[%clk 0:00:14]}  Rh2 {[%clk 0:00:51]} 31. Bxb7 {[%clk 0:00:13]}  Rxh4 {[%clk 0:00:51]} 32. Bg5 {[%clk 0:00:14]}  Rg4 {[%clk 0:00:50]} 0-1


[Site "https://www.chess.com"]

[Event "Titled Tuesday Blitz April 25 Early 2023"]
[White "Grigorov, Grigor"]
[Black "Sliwicka, Alicja"]
[WhiteFideId "2907313"]
[BlackFideId "1150677"]
[WhiteElo "2510"]
[BlackElo "2206"]
[Result "1-0"]
[Round "06"]
[TimeControl "180+2"]
[Date "2023.04.25"]
[WhiteClock "0:00:21"]
[BlackClock "0:00:06"]

1. d4 {[%clk 0:03:00]}  Nf6 {[%clk 0:02:56]} 2. Nf3 {[%clk 0:02:59]}  d5 {[%clk 0:02:54]} 3. c4 {[%clk 0:02:59]}  e6 {[%clk 0:02:54]} 4. g3 {[%clk 0:02:59]}  Be7 {[%clk 0:02:54]} 5. Bg2 {[%clk 0:02:58]}  O-O {[%clk 0:02:54]} 6. O-O {[%clk 0:02:58]}  b6 {[%clk 0:02:51]} 7. cxd5 {[%clk 0:02:53]}  exd5 {[%clk 0:02:50]} 8. Nc3 {[%clk 0:02:49]}  Bf5 {[%clk 0:02:46]} 9. Ne5 {[%clk 0:02:47]}  c6 {[%clk 0:02:40]} 10. Bf4 {[%clk 0:02:33]}  h6 {[%clk 0:02:33]} 11. Rc1 {[%clk 0:02:29]}  b5 {[%clk 0:02:18]} 12. Qb3 {[%clk 0:02:16]}  Qb6 {[%clk 0:02:14]} 13. Rfd1 {[%clk 0:02:07]}  Nbd7 {[%clk 0:02:11]} 14. Nxc6 {[%clk 0:01:47]}  Qxc6 {[%clk 0:02:00]} 15. Nxd5 {[%clk 0:01:48]}  Qe6 {[%clk 0:01:38]} 16. Nxe7+ {[%clk 0:01:45]}  Qxe7 {[%clk 0:01:39]} 17. Bxa8 {[%clk 0:01:45]}  Rxa8 {[%clk 0:01:39]} 18. Qxb5 {[%clk 0:01:44]}  Be4 {[%clk 0:01:26]} 19. f3 {[%clk 0:01:41]}  Bg6 {[%clk 0:01:17]} 20. e4 {[%clk 0:01:38]}  h5 {[%clk 0:01:08]} 21. h4 {[%clk 0:01:37]}  Nf8 {[%clk 0:00:47]} 22. d5 {[%clk 0:01:33]}  N6d7 {[%clk 0:00:40]} 23. Qb7 {[%clk 0:01:24]}  Re8 {[%clk 0:00:39]} 24. Qxa7 {[%clk 0:01:13]}  f5 {[%clk 0:00:27]} 25. e5 {[%clk 0:01:12]}  Nxe5 {[%clk 0:00:14]} 26. Qxe7 {[%clk 0:01:11]}  Rxe7 {[%clk 0:00:14]} 27. Kf2 {[%clk 0:01:08]}  Nfd7 {[%clk 0:00:12]} 28. Rc7 {[%clk 0:01:06]}  Re8 {[%clk 0:00:11]} 29. Rd2 {[%clk 0:00:49]}  Bf7 {[%clk 0:00:10]} 30. b3 {[%clk 0:00:44]}  Ra8 {[%clk 0:00:08]} 31. Kg2 {[%clk 0:00:38]}  Rb8 {[%clk 0:00:08]} 32. Rxd7 {[%clk 0:00:33]}  Nxd7 {[%clk 0:00:08]} 33. Bxb8 {[%clk 0:00:34]}  Nxb8 {[%clk 0:00:09]} 34. Kf2 {[%clk 0:00:32]}  Kf8 {[%clk 0:00:10]} 35. Ke3 {[%clk 0:00:31]}  Ke7 {[%clk 0:00:10]} 36. Kd4 {[%clk 0:00:31]}  Kd6 {[%clk 0:00:11]} 37. f4 {[%clk 0:00:23]}  Bxd5 {[%clk 0:00:10]} 38. Rc2 {[%clk 0:00:20]}  Nc6+ {[%clk 0:00:10]} 39. Ke3 {[%clk 0:00:20]}  Nb4 {[%clk 0:00:09]} 40. Rd2 {[%clk 0:00:21]}  Kc5 {[%clk 0:00:08]} 41. a3 {[%clk 0:00:21]}  Nc6 {[%clk 0:00:08]} 42. b4+ {[%clk 0:00:21]}  Kd6 {[%clk 0:00:09]} 43. Rc2 {[%clk 0:00:20]}  Na7 {[%clk 0:00:08]} 44. Rc5 {[%clk 0:00:20]}  Nc6 {[%clk 0:00:05]} 45. Rb5 {[%clk 0:00:19]}  g6 {[%clk 0:00:05]} 46. Rb7 {[%clk 0:00:17]}  Ne7 {[%clk 0:00:05]} 47. Rb6+ {[%clk 0:00:17]}  Nc6 {[%clk 0:00:05]} 48. b5 {[%clk 0:00:17]}  Kc7 {[%clk 0:00:02]} 49. Rxc6+ {[%clk 0:00:17]}  Bxc6 {[%clk 0:00:03]} 50. bxc6 {[%clk 0:00:18]}  Kxc6 {[%clk 0:00:04]} 51. Kd4 {[%clk 0:00:18]}  Kd6 {[%clk 0:00:04]} 52. a4 {[%clk 0:00:18]}  Kc6 {[%clk 0:00:05]} 53. Ke5 {[%clk 0:00:19]}  Kb6 {[%clk 0:00:04]} 54. Kf6 {[%clk 0:00:19]}  Ka5 {[%clk 0:00:05]} 55. Kxg6 {[%clk 0:00:20]}  Kxa4 {[%clk 0:00:06]} 56. Kxf5 {[%clk 0:00:21]} 1-0


[Site "https://www.chess.com"]